bitfinex/quotes_BTCUSD_20241202
["timestamp","ask_amount","ask_price","bid_price","bid_amount"]
[1733147933311,0.0009,95799.0,95798.0,0.0018635]
[1733147933546,0.00580695,95799.0,95798.0,0.0018635]
[1733147933753,0.0009,95799.0,95798.0,0.0018635]
[1733147933960,0.00580695,95799.0,95798.0,0.0018635]
[1733147934184,0.0009,95799.0,95798.0,0.0018635]
[1733147934408,0.00579735,95799.0,95798.0,0.0018635]
[1733147934639,0.0009,95799.0,95798.0,0.0018635]
[1733147934919,0.00579735,95799.0,95798.0,0.0018635]
[1733147935143,0.0009,95799.0,95798.0,0.0018635]
[1733147935362,0.00579735,95799.0,95798.0,0.0018635]
[1733147935579,0.0009,95799.0,95798.0,0.0018635]
[1733147935831,0.00579735,95799.0,95798.0,0.0018635]
[1733147936048,0.0009,95799.0,95798.0,0.0018635]
[1733147936262,0.00579735,95799.0,95798.0,0.0018635]
[1733147936962,0.0009,95799.0,95798.0,0.0018635]
[1733147939629,0.00579735,95799.0,95798.0,0.0018635]
[1733147939848,0.0009,95799.0,95798.0,0.0018635]
[1733147940114,0.00579735,95799.0,95798.0,0.0018635]
[1733147944025,0.0009,95799.0,95798.0,0.0018635]
[1733147944241,0.00579735,95799.0,95798.0,0.0018635]
[1733147944467,0.0009,95799.0,95798.0,0.0795635]
[1733147944711,0.00580539,95799.0,95798.0,0.0795635]
[1733147944932,0.0009,95799.0,95798.0,0.0795635]
[1733147948719,0.0009,95799.0,95798.0,0.23005611]
[1733147948942,0.0017268,95812.0,95810.0,0.208746]
[1733147949148,0.0017268,95812.0,95811.0,0.08374722]
[1733147949358,0.0017268,95812.0,95811.0,0.12954722]
[1733147949803,0.0017268,95812.0,95811.0,0.23239243]
[1733147950036,0.0017268,95812.0,95811.0,0.16783415]
[1733147950312,0.0037268,95812.0,95798.0,0.0008635]
[1733147950754,0.208744,95811.0,95798.0,0.0008635]
[1733147950972,0.208753,95807.0,95798.0,0.0008635]
[1733147951207,0.208757,95806.0,95798.0,0.0008635]
[1733147951418,0.0017268,95812.0,95798.0,0.0008635]
[1733147951620,0.00495695,95805.0,95798.0,0.0008635]
[1733147951833,0.208744,95811.0,95798.0,0.0008635]
[1733147952075,0.00495695,95804.0,95798.0,0.0008635]
[1733147952303,0.208744,95811.0,95798.0,0.0008635]
[1733147952817,0.00495695,95803.0,95798.0,0.0008635]
[1733147953041,0.208754,95807.0,95798.0,0.0008635]
[1733147953282,0.00495695,95802.0,95798.0,0.0008635]
[1733147953722,0.208754,95807.0,95798.0,0.0008635]
[1733147953947,0.00495695,95801.0,95798.0,0.0008635]
[1733147954157,0.208754,95807.0,95798.0,0.0008635]
[1733147954368,0.00495695,95800.0,95798.0,0.0008635]
[1733147954590,0.0017268,95812.0,95798.0,0.0008635]
[1733147954808,0.02605315,95799.0,95798.0,0.0008635]
[1733147955016,0.0210962,95799.0,95798.0,0.0008635]
[1733147955234,0.02603279,95799.0,95798.0,0.0008635]
[1733147957040,0.02703279,95799.0,95798.0,0.0008635]
[1733147957274,0.02703279,95799.0,95798.0,0.1255635]
[1733147957732,0.0220962,95799.0,95798.0,0.1255635]
[1733147957975,0.0220962,95799.0,95798.0,0.12741094]
[1733147958394,0.001,95799.0,95798.0,0.12741094]
[1733147959072,0.001,95799.0,95798.0,0.12741091]
[1733147959295,0.0017268,95812.0,95798.0,0.12741091]
[1733147959556,0.0017268,95812.0,95798.0,0.1255635]
[1733147959557,0.002,95799.0,95798.0,0.1255635]
[1733147959766,0.001,95799.0,95798.0,0.1255635]
[1733147959983,0.001,95799.0,95798.0,0.22840871]
[1733147960215,0.001,95799.0,95798.0,0.29300508]
[1733147960216,0.002,95799.0,95798.0,0.29300508]
[1733147961339,0.001,95799.0,95798.0,0.22840871]
[1733147961785,0.001,95799.0,95798.0,0.22940871]
[1733147962277,0.001,95799.0,95798.0,0.22840871]
[1733147962490,0.002,95799.0,95798.0,0.22940871]
[1733147962939,0.001,95799.0,95798.0,0.33224017]
[1733147963170,0.0017268,95811.0,95798.0,0.33124017]
[1733147963379,0.0017268,95811.0,95799.0,0.10469235]
[1733147963798,0.0017268,95811.0,95808.0,0.208749]
[1733147964056,0.0017268,95811.0,95810.0,0.208746]
[1733147964273,0.0017268,95811.0,95810.0,0.21059314]
[1733147964492,0.0027268,95811.0,95810.0,0.21836425]
[1733147964703,0.0027268,95811.0,95810.0,0.00777111]
[1733147964911,0.0027268,95811.0,95810.0,0.00961825]
[1733147965346,0.0037268,95811.0,95810.0,0.00977111]
[1733147965650,0.0027268,95811.0,95810.0,0.00977111]
[1733147965683,0.0027268,95811.0,95810.0,0.002]
[1733147965884,0.0037268,95811.0,95810.0,0.002]
[1733147966100,0.00767065,95811.0,95810.0,0.002]
[1733147966559,0.00867065,95811.0,95810.0,0.008]
[1733147966887,0.00767065,95811.0,95810.0,0.002]
[1733147967100,0.00767065,95811.0,95810.0,0.003]
[1733147967567,0.00667065,95811.0,95810.0,0.001]
[1733147967995,0.00667065,95811.0,95810.0,0.002]
[1733147969048,0.10054028,95811.0,95810.0,0.002]
[1733147969509,0.10053414,95811.0,95810.0,0.002]
[1733147970371,0.1005357,95811.0,95810.0,0.002]
[1733147971315,0.00667065,95811.0,95810.0,0.002]
[1733147971514,0.100534,95811.0,95810.0,0.002]
[1733147972365,0.00667065,95811.0,95810.0,0.002]
[1733147973044,0.10053602,95811.0,95810.0,0.002]
[1733147974723,0.10053602,95811.0,95810.0,0.0028634]
[1733147975562,0.00667065,95811.0,95810.0,0.0028634]
[1733147975996,0.14748482,95811.0,95810.0,0.0028634]
[1733147976210,0.00667065,95811.0,95810.0,0.0028634]
[1733147976416,0.19440991,95811.0,95810.0,0.0028634]
[1733147977251,0.00667065,95811.0,95810.0,0.0028634]
[1733147977681,0.00667065,95811.0,95810.0,0.0018634]
[1733147978802,0.19441378,95811.0,95810.0,0.0018634]
[1733147979005,0.00667065,95811.0,95810.0,0.0018634]
[1733147980503,0.00667065,95811.0,95810.0,0.11498687]
[1733147980706,0.0017268,95811.0,95810.0,0.10655579]
[1733147981203,0.0017268,95811.0,95810.0,0.0008634]
[1733147981837,0.0017268,95811.0,95810.0,0.00371055]
[1733147982043,0.0027268,95811.0,95810.0,0.0078634]
[1733147982244,0.0027268,95811.0,95810.0,0.0068634]
[1733147982694,0.0027268,95811.0,95810.0,0.0059014]
[1733147982922,0.00762535,95811.0,95810.0,0.0059014]
[1733147983131,0.00862535,95811.0,95810.0,0.0079014]
[1733147986836,0.1024952,95811.0,95810.0,0.0079014]
[1733147987044,0.14943013,95811.0,95810.0,0.0079014]
[1733147987476,0.00862535,95811.0,95810.0,0.0079014]
[1733147987916,0.14943013,95811.0,95810.0,0.0087649]
[1733147988128,0.00862535,95811.0,95810.0,0.0087649]
[1733147988786,0.14942799,95811.0,95810.0,0.0087649]
[1733147989022,0.02987888,95811.0,95810.0,0.0087649]
[1733147989482,0.21761859,95811.0,95810.0,0.0087649]
[1733147989722,0.02987888,95811.0,95810.0,0.0087649]
[1733147990585,0.13272409,95811.0,95810.0,0.0087649]
[1733147991261,0.13172409,95811.0,95810.0,0.0028635]
[1733147991462,0.13072409,95811.0,95810.0,0.0008635]
[1733147991678,0.13572409,95811.0,95810.0,0.0008635]
[1733147991893,0.31945008,95811.0,95810.0,0.0008635]
[1733147992111,0.13072409,95811.0,95810.0,0.0018635]
[1733147992328,0.32644599,95811.0,95810.0,0.0018635]
[1733147992770,0.13872409,95811.0,95810.0,0.0018635]
[1733147993008,0.32643947,95811.0,95810.0,0.0018635]
[1733147994415,0.32643189,95811.0,95810.0,0.0018635]
[1733147995047,0.13872409,95811.0,95810.0,0.0018635]
[1733147995520,0.15540132,95811.0,95810.0,0.0018635]
[1733147995720,0.01462535,95811.0,95810.0,0.0812635]
[1733147995929,0.0097268,95811.0,95810.0,0.1286635]
[1733147996135,0.0097268,95811.0,95810.0,0.13051068]
[1733147997225,0.0077268,95811.0,95810.0,0.13051068]
[1733147997427,0.0077268,95811.0,95810.0,0.23335589]
[1733147997645,0.0037268,95811.0,95810.0,0.23050871]
[1733147997876,0.0097268,95811.0,95810.0,0.23150871]
[1733147998087,0.0077268,95811.0,95810.0,0.23050871]
[1733147998310,0.0087268,95811.0,95810.0,0.23250871]
[1733147998517,0.0097268,95811.0,95810.0,0.23750871]
[1733148002514,0.0097268,95811.0,95810.0,0.54034017]
[1733148002842,0.0097268,95811.0,95810.0,0.43750871]
[1733148003524,0.0097268,95811.0,95810.0,0.63750871]
[1733148004158,0.0017268,95811.0,95810.0,0.63050871]
[1733148004378,0.0027268,95811.0,95810.0,0.63950871]
[1733148004554,0.0037268,95811.0,95810.0,0.64150871]
[1733148004794,0.0037268,95811.0,95810.0,0.74434017]
[1733148006273,0.001727,95814.0,95813.0,0.4]
[1733148006441,0.001727,95814.0,95813.0,0.62914521]
[1733148007454,0.05,95825.0,95820.0,0.608724]
[1733148007645,0.05,95825.0,95820.0,0.86006921]
[1733148007850,0.05,95825.0,95820.0,0.96290067]
[1733148008549,0.05,95825.0,95824.0,0.4]
[1733148008550,0.02768281,95825.0,95824.0,0.4]
[1733148008737,0.0017266,95828.0,95827.0,0.5252]
[1733148008947,0.00178591,95828.0,95827.0,0.62804521]
[1733148009174,0.00178591,95828.0,95827.0,0.31534521]
[1733148009378,0.00178591,95828.0,95827.0,0.41817667]
[1733148010249,0.31488591,95828.0,95827.0,0.41817667]
[1733148010522,0.31488591,95828.0,95827.0,0.44117667]
[1733148010523,0.23710526,95828.0,95827.0,0.44117667]
[1733148010739,0.23810526,95828.0,95827.0,0.42617667]
[1733148011185,0.23810526,95828.0,95827.0,0.33887667]
[1733148011385,0.23910526,95828.0,95827.0,0.24504521]
[1733148011846,0.24083226,95828.0,95827.0,0.24504521]
[1733148012072,0.24083226,95828.0,95827.0,0.11984521]
[1733148012306,0.003727,95828.0,95827.0,0.11984521]
[1733148012543,0.003727,95828.0,95827.0,0.017]
[1733148012748,0.002727,95828.0,95827.0,0.009]
[1733148012963,0.211434,95828.0,95827.0,0.009]
[1733148013183,0.211434,95828.0,95827.0,0.016]
[1733148013184,0.212434,95828.0,95827.0,0.016]
[1733148013423,0.411434,95828.0,95827.0,0.007]
[1733148013635,0.201727,95828.0,95811.0,0.00184706]
[1733148013868,0.202727,95828.0,95827.0,0.009]
[1733148014079,0.202727,95828.0,95827.0,0.006]
[1733148014309,0.202727,95828.0,95827.0,0.012]
[1733148014520,0.439827,95828.0,95827.0,0.006]
[1733148014737,0.208718,95824.0,95813.0,0.00184711]
[1733148015164,0.208718,95824.0,95811.0,0.005]
[1733148015165,0.208718,95824.0,95814.0,0.00184712]
[1733148015402,0.208709,95827.0,95814.0,0.00184712]
[1733148015619,0.2,95827.0,95814.0,0.00184712]
[1733148015852,0.2,95824.0,95811.0,0.011]
[1733148016094,0.417471,95815.0,95811.0,0.006]
[1733148016548,0.1127,95812.0,95811.0,0.006]
[1733148016755,0.208744,95811.0,95810.0,0.0008635]
[1733148016989,0.321444,95811.0,95810.0,0.0008635]
[1733148018188,0.1127,95811.0,95810.0,0.0038635]
[1733148018347,0.1127,95811.0,95810.0,0.0078635]
[1733148019924,0.1127,95822.0,95810.0,0.0078635]
[1733148020140,0.321421,95822.0,95810.0,0.0078635]
[1733148020346,0.321421,95822.0,95811.0,0.00184715]
[1733148020579,0.321421,95822.0,95810.0,0.0078635]
[1733148020580,0.1127,95822.0,95812.0,0.00184715]
[1733148020825,0.1127,95821.0,95812.0,0.00184715]
[1733148021032,0.208733,95816.0,95810.0,0.0048635]
[1733148021244,0.208724,95820.0,95810.0,0.0018635]
[1733148021682,0.1127,95821.0,95810.0,0.0018635]
[1733148021683,0.321424,95821.0,95810.0,0.0018635]
[1733148022182,0.208724,95820.0,95810.0,0.0018635]
[1733148022615,0.208733,95816.0,95810.0,0.0018635]
[1733148022829,0.208724,95820.0,95810.0,0.0008635]
[1733148023045,0.208724,95820.0,95812.0,0.001]
[1733148023276,0.210451,95820.0,95812.0,0.001]
[1733148023574,0.001727,95820.0,95812.0,0.00184723]
[1733148023792,0.001727,95820.0,95813.0,0.01485571]
[1733148024228,0.001727,95820.0,95813.0,0.01670286]
[1733148024445,0.001727,95820.0,95813.0,0.01485571]
[1733148024690,0.001727,95820.0,95811.0,0.00184716]
[1733148024909,0.001727,95820.0,95812.0,0.001]
[1733148025154,0.208726,95819.0,95812.0,0.00284716]
[1733148025377,0.208726,95819.0,95812.0,0.001]
[1733148026273,0.208726,95819.0,95810.0,0.0008635]
[1733148026720,0.208726,95819.0,95813.0,0.007]
[1733148027220,0.001727,95820.0,95810.0,0.00271068]
[1733148027449,0.208726,95819.0,95812.0,0.002]
[1733148027921,0.001727,95820.0,95812.0,0.001]
[1733148028130,0.417453,95819.0,95813.0,0.001]
[1733148028549,0.208729,95818.0,95813.0,0.001]
[1733148028765,0.208737,95814.0,95813.0,0.001]
[1733148028994,0.208731,95817.0,95813.0,0.001]
[1733148029235,0.114427,95820.0,95813.0,0.001]
[1733148029236,0.1127,95818.0,95813.0,0.001]
[1733148029461,0.321434,95816.0,95813.0,0.001]
[1733148029927,0.321429,95818.0,95812.0,0.001]
[1733148030138,0.208744,95811.0,95810.0,0.0008635]
[1733148030801,0.321444,95811.0,95810.0,0.0008635]
[1733148032460,0.521444,95811.0,95810.0,0.0008635]
[1733148032677,0.521444,95811.0,95810.0,0.0048635]
[1733148032892,0.521444,95811.0,95810.0,0.0078635]
[1733148033326,0.758544,95811.0,95810.0,0.0078635]
[1733148033789,0.758544,95811.0,95810.0,0.00757823]
[1733148040634,0.2371,95811.0,95810.0,0.00757823]
[1733148042970,0.4371,95811.0,95810.0,0.00757823]
[1733148043455,0.5498,95811.0,95810.0,0.00757823]
[1733148044778,0.3498,95811.0,95810.0,0.00757823]
[1733148048209,0.2371,95811.0,95810.0,0.00757823]
[1733148048863,0.23623362,95811.0,95810.0,0.00757823]
[1733148050230,0.208737,95815.0,95810.0,0.00757823]
[1733148050894,0.417474,95815.0,95810.0,0.00757823]
[1733148051102,0.208737,95815.0,95810.0,0.00457823]
[1733148051305,0.2,95816.0,95810.0,0.00457823]
[1733148051543,0.408735,95816.0,95810.0,0.00257823]
[1733148051760,0.2,95816.0,95810.0,0.00457823]
[1733148052193,0.2,95816.0,95810.0,0.00257823]
[1733148052403,0.4363,95816.0,95810.0,0.00257823]
[1733148052639,0.208735,95815.0,95810.0,0.00457823]
[1733148053096,0.208735,95815.0,95810.0,0.00257823]
[1733148053327,0.208744,95811.0,95810.0,0.00457823]
[1733148053797,0.208735,95815.0,95810.0,0.00257823]
[1733148053798,0.208743,95812.0,95810.0,0.00257823]
[1733148054005,0.208743,95812.0,95810.0,0.00457823]
[1733148054221,0.208743,95812.0,95810.0,0.00257823]
[1733148054472,0.3127,95811.0,95810.0,0.00257823]
[1733148054701,0.3127,95811.0,95810.0,0.00657823]
[1733148054910,0.3127,95811.0,95810.0,0.00057823]
[1733148055321,0.3127,95811.0,95810.0,0.00357823]
[1733148055830,0.3127,95811.0,95810.0,0.00057823]
[1733148056273,0.33308413,95811.0,95810.0,0.00357823]
[1733148056933,0.33308413,95811.0,95810.0,0.00757823]
[1733148057158,0.33308413,95811.0,95810.0,0.00357823]
[1733148057578,0.33308413,95811.0,95810.0,0.00757823]
[1733148058677,0.3127,95811.0,95810.0,0.00757823]
[1733148060027,0.314427,95811.0,95810.0,0.00757823]
[1733148062908,0.49467221,95811.0,95810.0,0.00757823]
[1733148063408,0.72909127,95811.0,95810.0,0.00757823]
[1733148063627,0.49467221,95811.0,95810.0,0.00757823]
[1733148063839,0.72909127,95811.0,95810.0,0.00757823]
[1733148064285,0.49467221,95811.0,95810.0,0.00757823]
[1733148064499,0.40877,95799.0,95798.0,0.0008635]
[1733148064753,0.52147,95799.0,95798.0,0.0008635]
[1733148065860,0.52147,95799.0,95798.0,0.00145633]
[1733148066313,0.54211634,95799.0,95798.0,0.00145633]
[1733148066762,0.52147,95799.0,95798.0,0.00145633]
[1733148066977,0.52247,95799.0,95798.0,0.00845633]
[1733148067396,0.52347,95799.0,95798.0,0.01145633]
[1733148068043,0.52347,95799.0,95798.0,0.00845633]
[1733148068044,0.52247,95799.0,95798.0,0.00845633]
[1733148068303,0.62431521,95799.0,95798.0,0.00145633]
[1733148068799,0.70231521,95799.0,95798.0,0.00145633]
[1733148069222,0.93861521,95799.0,95798.0,0.00145633]
[1733148069427,1.12621633,95799.0,95798.0,0.00145633]
[1733148069638,0.93861521,95799.0,95798.0,0.00145633]
[1733148070717,0.94061521,95799.0,95798.0,0.00145633]
[1733148071399,0.98971521,95799.0,95798.0,0.00145633]
[1733148071840,1.57421594,95799.0,95798.0,3.3e-07]
[1733148072077,1.33971521,95799.0,95798.0,3.3e-07]
[1733148072550,1.57404521,95799.0,95798.0,3.3e-07]
[1733148072785,1.33971521,95799.0,95798.0,3.3e-07]
[1733148073016,1.53971521,95799.0,95798.0,3.3e-07]
[1733148073679,1.33971521,95799.0,95798.0,3.3e-07]
[1733148073887,1.53971521,95799.0,95798.0,3.3e-07]
[1733148074108,1.57398847,95799.0,95798.0,3.3e-07]
[1733148074326,0.98971521,95799.0,95798.0,3.3e-07]
[1733148074548,0.75977,95799.0,95798.0,3.3e-07]
[1733148074757,0.2383,95799.0,95798.0,3.3e-07]
[1733148074993,0.2383,95799.0,95798.0,0.07740033]
[1733148075431,0.2383,95799.0,95798.0,0.20324554]
[1733148075653,0.2383,95799.0,95798.0,0.27025045]
[1733148075879,0.2383,95799.0,95798.0,0.20324554]
[1733148076088,0.2363,95799.0,95798.0,0.20324554]
[1733148076591,0.2363,95799.0,95798.0,0.20724554]
[1733148076821,0.2363,95799.0,95798.0,0.20324554]
[1733148077273,0.2373,95799.0,95798.0,0.20824554]
[1733148077485,0.2373,95799.0,95798.0,0.21009297]
[1733148077916,0.2373,95799.0,95798.0,0.32709787]
[1733148078127,0.2383,95799.0,95798.0,0.32825044]
[1733148079031,0.2373,95799.0,95798.0,0.25774554]
[1733148079237,0.2373,95799.0,95798.0,0.25274554]
[1733148079238,0.2363,95799.0,95798.0,0.25274554]
[1733148079688,0.2373,95799.0,95798.0,0.26174554]
[1733148079894,0.2363,95799.0,95798.0,0.25274554]
[1733148080339,0.2373,95799.0,95798.0,0.26174554]
[1733148080568,0.2373,95799.0,95798.0,0.25574554]
[1733148080569,0.2363,95799.0,95798.0,0.25574554]
[1733148080828,0.2373,95799.0,95798.0,0.25574554]
[1733148081040,0.2383,95799.0,95798.0,0.26474554]
[1733148081257,0.2373,95799.0,95798.0,0.26174554]
[1733148081490,0.2383,95799.0,95798.0,0.26474554]
[1733148082148,0.2383,95799.0,95798.0,0.13890033]
[1733148082393,0.2383,95799.0,95798.0,0.01200033]
[1733148083289,0.2383,95799.0,95798.0,0.03586393]
[1733148083517,0.2400272,95799.0,95798.0,0.03586393]
[1733148083752,0.2380272,95799.0,95798.0,0.02386393]
[1733148084124,0.2380272,95799.0,95798.0,0.12670914]
[1733148084125,0.2390272,95799.0,95798.0,0.12970914]
[1733148084311,0.2400272,95799.0,95798.0,0.14055662]
[1733148084513,0.2390272,95799.0,95798.0,0.13570914]
[1733148084957,0.2400272,95799.0,95798.0,0.13870914]
[1733148085993,0.2400272,95799.0,95798.0,0.03586393]
[1733148086424,0.4487972,95799.0,95798.0,0.03586393]
[1733148086657,0.2400272,95799.0,95798.0,0.03586393]
[1733148091741,0.2400272,95799.0,95798.0,0.1405566]
[1733148091997,0.2400272,95799.0,95798.0,0.2715566]
[1733148092215,0.2400272,95799.0,95798.0,0.26970914]
[1733148092846,0.2400272,95799.0,95798.0,0.26670914]
[1733148093094,0.2390272,95799.0,95798.0,0.26670914]
[1733148093332,0.2400272,95799.0,95798.0,0.33813515]
[1733148093526,0.2390272,95799.0,95798.0,0.32913515]
[1733148093732,0.2380272,95799.0,95798.0,0.32613515]
[1733148093938,0.2390272,95799.0,95798.0,0.33513515]
[1733148094168,0.2400272,95799.0,95798.0,0.33813515]
[1733148098395,0.2400272,95799.0,95798.0,0.26970914]
[1733148103903,0.2390272,95799.0,95798.0,0.26970914]
[1733148104827,0.2390272,95799.0,95798.0,0.01286393]
[1733148105250,0.4390272,95799.0,95798.0,0.01286393]
[1733148105479,0.4430272,95799.0,95798.0,0.01286393]
[1733148106127,0.46344098,95799.0,95798.0,0.01286393]
[1733148106352,0.4430272,95799.0,95798.0,0.01286393]
[1733148106775,0.4420272,95799.0,95798.0,0.03286393]
[1733148107209,0.4420272,95799.0,95798.0,0.03486393]
[1733148108168,0.2380272,95799.0,95798.0,0.03486393]
[1733148108395,0.2370272,95799.0,95798.0,0.02586393]
[1733148108602,0.2370272,95799.0,95798.0,0.02686393]
[1733148112850,0.2370272,95799.0,95798.0,0.003]
[1733148113787,0.5497272,95799.0,95798.0,0.003]
[1733148114415,0.6293272,95799.0,95798.0,0.003]
[1733148114629,0.6753272,95799.0,95798.0,0.003]
[1733148115580,0.321498,95786.0,95785.0,0.0008633]
[1733148117848,0.321498,95786.0,95785.0,0.0048633]
[1733148118067,0.521498,95786.0,95785.0,0.0048633]
[1733148118276,0.521498,95786.0,95785.0,0.0098633]
[1733148119157,0.521498,95786.0,95785.0,0.0048633]
[1733148119600,0.756798,95786.0,95785.0,0.0048633]
[1733148120033,0.756798,95786.0,95785.0,0.0008633]
[1733148120283,0.756798,95786.0,95785.0,0.0018633]
[1733148127647,0.94224321,95786.0,95785.0,0.0018633]
[1733148127900,0.99064321,95786.0,95785.0,0.0018633]
[1733148128333,0.99064321,95786.0,95785.0,0.0008633]
[1733148128787,0.99064321,95786.0,95785.0,0.0018633]
[1733148129490,0.99664321,95786.0,95785.0,0.0028633]
[1733148129731,0.845398,95786.0,95785.0,0.0028633]
[1733148130394,0.845398,95786.0,95785.0,0.0018633]
[1733148130667,0.848398,95786.0,95785.0,0.0018633]
[1733148131181,0.95124321,95786.0,95785.0,0.0018633]
[1733148131615,0.99354321,95786.0,95785.0,0.0018633]
[1733148131860,0.99454321,95786.0,95785.0,0.0018633]
[1733148132068,0.3127,95782.0,95781.0,0.00503065]
[1733148132288,0.62435221,95782.0,95781.0,0.00503065]
[1733148134559,0.62635221,95782.0,95781.0,0.00503065]
[1733148134836,0.63035221,95782.0,95781.0,0.00503065]
[1733148135053,0.70815221,95782.0,95781.0,0.00503065]
[1733148135288,0.70815221,95782.0,95744.0,0.0805637]
[1733148135289,0.521516,95778.0,95744.0,0.0805637]
[1733148135518,0.321588,95745.0,95744.0,0.0008637]
[1733148135748,0.521588,95745.0,95744.0,0.0008637]
[1733148136433,0.54258088,95745.0,95744.0,0.0008637]
[1733148136914,0.54317306,95745.0,95744.0,0.0008637]
[1733148138554,0.77847306,95745.0,95744.0,0.0028637]
[1733148138773,0.77847306,95745.0,95744.0,0.0008637]
[1733148138975,0.85777306,95745.0,95744.0,0.0008637]
[1733148139214,0.85877306,95745.0,95744.0,0.0008637]
[1733148140295,0.77947306,95745.0,95744.0,0.0008637]
[1733148142070,0.75848018,95745.0,95744.0,0.0008637]
[1733148144120,0.86132539,95745.0,95744.0,0.0008637]
[1733148144558,0.93942539,95745.0,95744.0,0.0008637]
[1733148144785,0.98622539,95745.0,95744.0,0.0008637]
[1733148145505,0.98522539,95745.0,95744.0,0.0008637]
[1733148145970,0.99322539,95745.0,95744.0,0.0018637]
[1733148146224,0.98822539,95745.0,95744.0,0.0008637]
[1733148146674,0.99722539,95745.0,95744.0,0.0018637]
[1733148146878,0.99422539,95745.0,95744.0,0.0018637]
[1733148147333,0.99822539,95745.0,95744.0,0.0018637]
[1733148147556,0.95142539,95745.0,95744.0,0.0018637]
[1733148147783,0.94742539,95745.0,95744.0,0.0018637]
[1733148148007,0.93842539,95745.0,95744.0,0.0008637]
[1733148148471,0.86932539,95745.0,95744.0,0.0018637]
[1733148149132,0.86032539,95745.0,95744.0,0.0008637]
[1733148149579,0.87332539,95745.0,95744.0,0.0018637]
[1733148149818,0.86432539,95745.0,95744.0,0.0008637]
[1733148150102,0.86032539,95745.0,95744.0,0.0008637]
[1733148150518,0.86232539,95745.0,95744.0,0.0008637]
[1733148150757,0.75948018,95745.0,95744.0,0.0008637]
[1733148151461,0.24189218,95745.0,95744.0,0.0018637]
[1733148151663,0.34859218,95745.0,95744.0,0.0008637]
[1733148151873,0.35459218,95745.0,95744.0,0.0018637]
[1733148152292,0.34859218,95745.0,95744.0,0.0008637]
[1733148152723,0.35459218,95745.0,95744.0,0.0018637]
[1733148152934,0.35059218,95745.0,95744.0,0.0008637]
[1733148153152,0.35059218,95745.0,95744.0,0.0028637]
[1733148153613,0.34859218,95745.0,95744.0,0.0028637]
[1733148154319,0.34859218,95745.0,95744.0,0.0048637]
[1733148154550,0.34859218,95745.0,95744.0,0.0028637]
[1733148154794,0.34859218,95745.0,95744.0,0.0038637]
[1733148155253,0.54859218,95745.0,95744.0,0.0038637]
[1733148156396,0.54859218,95745.0,95744.0,0.0018637]
[1733148156653,0.54859218,95745.0,95744.0,0.0028637]
[1733148157108,0.65143739,95745.0,95744.0,0.0018637]
[1733148157565,0.65443739,95745.0,95744.0,0.0008637]
[1733148158018,0.66143739,95745.0,95744.0,0.0018637]
[1733148159118,0.68194245,95745.0,95744.0,0.0018637]
[1733148163249,0.80844245,95745.0,95744.0,0.0018637]
[1733148165268,0.98881945,95745.0,95744.0,0.0018637]
[1733148167054,1.13881945,95745.0,95744.0,0.0018637]
[1733148167285,1.13881945,95745.0,95744.0,7e-07]
[1733148167492,0.95844245,95745.0,95744.0,7e-07]
[1733148168809,0.96024411,95745.0,95744.0,7e-07]
[1733148169033,0.95844245,95745.0,95744.0,7e-07]
[1733148171031,0.71344245,95745.0,95744.0,7e-07]
[1733148171267,0.83194245,95745.0,95744.0,7e-07]
[1733148177381,0.83194245,95745.0,95744.0,0.0008645]
[1733148177601,0.83367005,95745.0,95744.0,0.0008645]
[1733148180018,0.721594,95742.0,95741.0,5e-07]
[1733148180250,1.10753921,95742.0,95741.0,5e-07]
[1733148180458,1.10753921,95742.0,95709.0,0.00027867]
[1733148180459,0.652638,95722.0,95721.0,5e-07]
[1733148180737,0.75548321,95722.0,95721.0,5e-07]
[1733148180992,0.90548321,95722.0,95721.0,5e-07]
[1733148181229,1.10548321,95722.0,95721.0,5e-07]
[1733148181709,1.11448321,95722.0,95721.0,0.0010005]
[1733148181973,1.10548321,95722.0,95721.0,5e-07]
[1733148182415,1.11448321,95722.0,95721.0,0.0010005]
[1733148182644,1.11448321,95722.0,95721.0,5e-07]
[1733148182645,1.10548321,95722.0,95721.0,5e-07]
[1733148182879,1.1263514,95722.0,95721.0,5e-07]
[1733148183112,1.1263514,95722.0,95721.0,0.0010005]
[1733148183113,1.1353514,95722.0,95721.0,0.0010005]
[1733148183366,1.1413514,95722.0,95721.0,0.0010005]
[1733148184560,0.3127,95714.0,95713.0,79.25412001]
[1733148184791,0.45325541,95714.0,95713.0,79.25412001]
[1733148185026,0.3127,95714.0,95713.0,79.25412001]
[1733148185720,0.3157,95714.0,95713.0,79.25412001]
[1733148185951,0.31629181,95714.0,95713.0,79.25412001]
[1733148186171,0.32229181,95714.0,95713.0,79.25412001]
[1733148187841,0.31329181,95714.0,95713.0,79.25412001]
[1733148188077,0.31829181,95714.0,95713.0,79.25412001]
[1733148188305,0.32129181,95714.0,95713.0,79.25412001]
[1733148188548,0.31629181,95714.0,95713.0,79.25412001]
[1733148188806,0.31329181,95714.0,95713.0,79.25412001]
[1733148189018,0.31429181,95714.0,95713.0,79.25412001]
[1733148189483,0.31329181,95714.0,95713.0,79.25412001]
[1733148190329,0.31329181,95714.0,95713.0,79.25498391]
[1733148191004,0.31429181,95714.0,95713.0,79.25498391]
[1733148191254,0.00159181,95714.0,95713.0,79.25498391]
[1733148191460,0.00159181,95714.0,95713.0,79.38218391]
[1733148193462,0.00159181,95714.0,95713.0,79.40518391]
[1733148199319,0.00159181,95714.0,95713.0,79.50802912]
[1733148199552,0.2353,95722.0,95713.0,79.50802912]
[1733148199553,0.2353,95722.0,95721.0,0.35754]
[1733148199764,0.22003927,95722.0,95721.0,0.46038521]
[1733148200011,0.2,95764.0,95734.0,0.231912]
[1733148200256,0.2,95764.0,95734.0,0.49227841]
[1733148200482,0.0772,95788.0,95744.0,0.20889]
[1733148200483,0.2,95773.0,95744.0,0.20889]
[1733148200715,0.2,95773.0,95744.0,0.4624834]
[1733148200921,0.2,95773.0,95744.0,0.46063521]
[1733148201838,0.0027276,95745.0,95744.0,0.54799452]
[1733148202061,0.0027276,95745.0,95744.0,0.64457347]
[1733148202575,0.0037276,95745.0,95744.0,0.64557347]
[1733148204038,0.0017272,95777.0,95751.0,0.0873]
[1733148204281,0.0017272,95777.0,95772.0,0.208827]
[1733148204475,0.0017272,95777.0,95773.0,0.0208827]
[1733148205089,0.0017272,95777.0,95774.0,0.417648]
[1733148205418,0.0017272,95777.0,95775.0,0.0474]
[1733148205653,0.0017272,95777.0,95776.0,0.20882]
[1733148205867,0.0017272,95777.0,95775.0,0.04745931]
[1733148205992,0.0017272,95777.0,95775.0,0.09605891]
[1733148206195,0.0017272,95777.0,95775.0,0.04745931]